[Event "DFMM-LV 2023"]
[Site "Braunfels"]
[Date "2023.06.11"]
[Round "5.42"]
[White "Skogvall, Martina"]
[Black "Skibbe, Diana"]
[Result "1-0"]
[Annotator "TA"]
[ECO "C29"]
[WhiteElo "1979"]
[BlackElo "1956"]
[PlyCount "93"]
[EventDate "2023.06.09"]
[EventType "team-tourn"]
[EventCountry "GER"]
[SourceTitle "playchess.com"]
[Source "ChessBase"]
[SourceQuality "1"]
[TimeControl "40/5400+30:1800+30"]

{[%evp 9,93,-45,17,-10,0,-4,0,2,71,3,6,3,12,14,16,4,0,-7,36,33,79,17,39,23,28,37,31,29,13,18,15,17,43,0,0,0,4,0,0,0,0,-15,0,0,0,0,0,-13,-14,-27,-18,0,60,-47,0,0,0,0,100,110,153,67,70,-210,63,77,67,70,78,79,87,58,55,35,56,21,43,0,0,0,14,0,95,84,296,289]} 1. e4 {[%emt 0:00:01]} e5 {[%emt 0:00:06]} 2. Nc3 {[%emt 0:00:05]} Nf6 {[%emt 0:00:08]} 3. f4 {[%emt 0:00:08]} d5 {[%emt 0:00:08]} 4. fxe5 {[%emt 0:00:06]} Nxe4 {[%emt 0:00:02]} 5. Qf3 {[%emt 0:00:15]} Nxc3 {[%emt 0:00:59]} ({Black should play} 5... f5 $15) 6. dxc3 {[%emt 0:00:04] C29: Vienna Game: 2...Nf6 3 f4.} Be7 {[%emt 0:00:32]} 7. Bf4 {[%emt 0:00:12]} Be6 {[%emt 0:02:15]} 8. O-O-O {[%emt 0:00:21] The position is equal.} Bg5 {[%emt 0:01:36]} (8... Nd7 $11 {remains equal.}) 9. Kb1 {[%emt 0:00:22]} (9. Nh3 $16 Bxf4+ 10. Nxf4) 9... Bxf4 $11 {[%emt 0:00:34]} 10. Qxf4 {[%emt 0:00:05]} Qe7 {[%emt 0:00:33]} 11. Nf3 {[%emt 0:01:13]} Nd7 {[%emt 0:01:04]} 12. Bd3 {[%emt 0:03:04]} O-O-O {[%emt 0:00:14] [#]} 13. Nd4 $146 {[%emt 0:02:24]} ({Predecessor:} 13. Rhf1 f6 14. exf6 Nxf6 15. Rde1 Qd7 16. Rxe6 {1-0 Monpeurt,C (2147)-Koch,M (1648) FRA-chT Top 16 Gp Basse 2023 (1.3)}) 13... g5 {[%emt 0:04:04]} 14. Qe3 {[%emt 0:03:54]} Qc5 {[%emt 0:03:52]} (14... Kb8 $14 {should be considered.}) 15. Rde1 {[%emt 0:05:38]} ({Better is} 15. Qxg5 $16 Rdg8 16. Qh6) 15... h6 {[%emt 0:00:52]} 16. Rhf1 {[%emt 0:01:23]} Qb6 {[%emt 0:00:19]} 17. Bf5 {[%emt 0:30:43]} c5 {[%emt 0:08:06]} 18. Bxe6 {[%emt 0:05:38]} fxe6 {[%emt 0:00:09]} 19. Nb3 {[%emt 0:03:15]} Rdf8 {[%emt 0:00:53]} 20. a3 {[%emt 0:04:09]} a5 {[%emt 0:05:53][%cal Ba7a5,Ba5a4][%mdl 32]} 21. Qh3 {[%emt 0:02:58]} Rxf1 {[%emt 0:05:29]} 22. Rxf1 {[%emt 0:00:01][%cal Oc3c4]} a4 {[%emt 0:00:18]} 23. Nd2 {[%emt 0:00:43]} Nxe5 {[%emt 0:13:40]} 24. Re1 {[%emt 0:02:47]} Qd6 {[%emt 0:00:12]} 25. Qg3 {[%emt 0:00:36]} Nf7 {[%emt 0:00:48] Threatens to win with ...Qxg3.} (25... Nc4 {looks sharper.} 26. Nxc4 Qxg3 27. Nb6+ Kc7) 26. Qg4 {[%emt 0:00:21]} Nd8 {[%emt 0:01:16]} 27. Qxa4 {[%emt 0:02:54]} Qxh2 {[%emt 0:00:07]} 28. Qa5 {[%emt 0:08:10]} Qc7 {[%emt 0:00:59]} 29. Qa8+ {[%emt 0:00:59]} Kd7 {[%emt 0:00:44]} 30. Nf3 {[%emt 0:01:13]} Nf7 {[%emt 0:03:39] Against Ne5+} (30... Ke7 $11) 31. Qa4+ {[%emt 0:00:09]} (31. Ne5+ $1 $14 Qxe5 32. Qa4+ Kc7 33. Rxe5 Nxe5 34. b4) 31... Ke7 {[%emt 0:04:55]} (31... Qc6 $15 32. Qg4 h5) 32. Qg4 {[%emt 0:00:26]} Qd6 {[%emt 0:00:23]} 33. c4 {[%emt 0:08:12]} h5 {[%emt 0:03:55]} (33... dxc4 $11 {keeps the balance.} 34. Qxc4 Rd8) 34. Qf5 $16 {[%emt 0:00:09]} Rh6 {[%emt 0:05:31]} 35. cxd5 {[%emt 0:01:17] White has more active pieces.} ({White should try} 35. Nxg5 $16 Rf6 36. Qh7 (36. Qxd5 $2 {is the wrong capture.} Qxd5 {[%mdl 64] Remove Defender} 37. cxd5 Nxg5 $19)) 35... Rf6 $14 {[%emt 0:05:34]} 36. Rxe6+ $2 {[%emt 0:03:16][%mdl 8192] [#]} (36. Qe4 $14 {stays ahead.}) 36... Rxe6 $2 {[%emt 0:00:59]} (36... Qxe6 $19 37. Qxe6+ Rxe6 38. dxe6 g4) 37. dxe6 {[%emt 0:00:27]} Qxe6 {[%emt 0:02:48]} 38. Qxc5+ {[%emt 0:00:07][%mdl 4096] Endgame KQN-KQN} Kf6 {[%emt 0:00:16]} 39. Qd4+ {[%emt 0:03:17]} Kg6 {[%emt 0:00:20]} 40. Qb4 {[%emt 0:00:26]} Qd5 {[%emt 0:02:19]} 41. Qb6+ {[%emt 0:36:02]} Kf5 {[%emt 0:31:02]} 42. Qc7 {[%emt 0:00:31]} Kg4 {[%emt 0:01:40]} 43. b3 {[%emt 0:00:00]} h4 {[%emt 0:00:00]} 44. a4 {[%emt 0:00:00]} Nd6 {[%emt 0:00:00]} 45. a5 {[%emt 0:00:00]} Nf5 {[%emt 0:00:00]} (45... Kf4 $11) 46. Qc3 {[%emt 0:00:00] And now Qf6 would win.} Kg3 $2 {[%emt 0:00:00] [#]} (46... Qe4 $16) 47. Nxh4+ $1 {[%emt 0:00:00][%mdl 576] Decoy.   Weighted Error Value: White=0.27 (precise) /Black=0.37} 1-0

[Event "DFMM-LV 2023"]
[Site "Braunfels"]
[Date "2023.06.11"]
[Round "5.43"]
[White "Bethge, Johanna"]
[Black "Bazzazi, Elnaz"]
[Result "1/2-1/2"]
[Annotator "NA RC COMBH"]
[ECO "C45"]
[WhiteElo "1721"]
[BlackElo "1827"]
[PlyCount "27"]
[EventDate "2023.06.09"]
[EventType "team-tourn"]
[EventCountry "GER"]
[SourceTitle "playchess.com"]
[Source "ChessBase"]
[SourceQuality "1"]
[TimeControl "40/5400+30:1800+30"]

1. e4 {[%emt 0:00:03]} e5 {[%emt 0:00:05]} 2. Nf3 {[%emt 0:00:12]} Nc6 {[%emt 0:00:07]} 3. d4 {[%emt 0:00:15]} exd4 {[%emt 0:00:04]} 4. Nxd4 {[%emt 0:00:06]} Qf6 {[%emt 0:00:23]} 5. Be3 {[%emt 0:03:45]} Bc5 {[%emt 0:00:15]} 6. c3 {[%emt 0:00:26]} Qg6 {[%emt 0:00:31]} 7. Qf3 {[%emt 0:16:52]} Nf6 {[%emt 0:01:14]} 8. Nb5 {[%emt 0:06:45]} Bxe3 {[%emt 0:17:04]} 9. Qxe3 {[%emt 0:02:21]} Kd8 {[%emt 0:05:58]} 10. Nd2 {[%emt 0:02:36]} Re8 {[%emt 0:01:24]} 11. f3 {[%emt 0:07:13]} d5 {[%emt 0:08:56]} 12. O-O-O {[%emt 0:01:41]} a6 {[%emt 0:03:58]} 13. Nd4 {[%emt 0:08:12]} Bd7 {[%emt 0:04:13]} 14. Nxc6+ {[%emt 0:47:03]} 1/2-1/2

[Event "DFMM-LV 2023"]
[Site "Braunfels"]
[Date "2023.06.11"]
[Round "5.44"]
[White "Von Herman, Brigitte"]
[Black "Dietrich, Mareike"]
[Result "1/2-1/2"]
[Annotator "TA"]
[ECO "B22"]
[WhiteElo "1904"]
[BlackElo "1771"]
[PlyCount "30"]
[EventDate "2023.06.09"]
[EventType "team-tourn"]
[EventCountry "GER"]
[SourceTitle "playchess.com"]
[Source "ChessBase"]
[SourceQuality "1"]
[TimeControl "40/5400+30:1800+30"]

{[%evp 26,30,-11,-55,0,-60,18]} 1. e4 {[%emt 0:00:02]} c5 {[%emt 0:00:05]} 2. c3 {[%emt 0:00:07]} Nf6 {[%emt 0:00:21]} 3. e5 {[%emt 0:00:07]} Nd5 {[%emt 0:00:03]} 4. d4 {[%emt 0:00:12]} cxd4 {[%emt 0:00:30]} 5. Nf3 {[%emt 0:00:07]} Nc6 {[%emt 0:00:09]} 6. Bc4 {[%emt 0:00:13]} Nb6 {[%emt 0:00:05]} 7. Bb3 {[%emt 0:00:22]} d6 {[%emt 0:01:19]} 8. exd6 {[%emt 0:00:14]} Qxd6 {[%emt 0:00:05]} 9. O-O {[%emt 0:00:38]} Be6 {[%emt 0:00:52]} 10. Bxe6 {[%emt 0:13:58]} Qxe6 {[%emt 0:01:00]} 11. Nxd4 {[%emt 0:00:12]} Nxd4 {[%emt 0:01:13]} 12. Qxd4 {[%emt 0:00:07]} Rd8 {[%emt 0:00:11]} 13. Qh4 {[%emt 0:00:18]} Qe2 {[%emt 0:01:49]} 14. Nd2 {[%emt 0:02:24]} e5 {[%emt 0:03:20] [#] B22: Sicilian: 2 c3.} ({Better is} 14... Rxd2 $15 15. Bxd2 Qxd2) 15. Nf3 $146 {[%emt 0:22:44]} (15. Ne4 $1 $11) ({Predecessor:} 15. Qg3 f6 16. Qh3 Kf7 17. a4 Bc5 18. g3 Rxd2 19. Bxd2 Qxd2 20. b4 Be7 21. a5 Qd7 22. Qh5+ {½-½ Sevillano,E (2490)-Arnold,M (2505) Lubbock SPICE Cup-B 5th 2011 (4)}) 15... f6 {[%emt 0:13:20]} (15... Rd1 $15 16. Nd2 Bd6) 1/2-1/2

[Event "DFMM-LV 2023"]
[Site "Braunfels"]
[Date "2023.06.11"]
[Round "5.45"]
[White "Kohl, Natalie"]
[Black "Guder, Sibylle"]
[Result "0-1"]
[Annotator "NA RC COMBH"]
[ECO "B08"]
[WhiteElo "1504"]
[BlackElo "1808"]
[PlyCount "61"]
[EventDate "2023.06.09"]
[EventType "team-tourn"]
[EventCountry "GER"]
[SourceTitle "playchess.com"]
[Source "ChessBase"]
[SourceQuality "1"]
[TimeControl "40/5400+30:1800+30"]

1. e4 {[%emt 0:00:17]} g6 {[%emt 0:00:05]} 2. d4 {[%emt 0:01:27]} Bg7 {[%emt 0:03:04]} 3. Nf3 {[%emt 0:01:54]} d6 {[%emt 0:00:27]} 4. h3 {[%emt 0:01:33]} Nf6 {[%emt 0:01:38]} 5. Nc3 {[%emt 0:02:23]} a6 {[%emt 0:00:12]} 6. Bc4 {[%emt 0:01:00]} b5 {[%emt 0:00:59]} 7. Bb3 {[%emt 0:09:18]} O-O {[%emt 0:00:58]} 8. O-O {[%emt 0:00:36]} c6 {[%emt 0:11:02]} 9. e5 {[%emt 0:03:32]} Ne8 {[%emt 0:02:40]} 10. Ne4 {[%emt 0:20:19]} h6 {[%emt 0:15:35]} 11. Bf4 {[%emt 0:20:50]} Bf5 {[%emt 0:09:34]} 12. Ng3 {[%emt 0:01:48]} Be6 {[%emt 0:00:41]} 13. d5 {[%emt 0:03:40]} cxd5 {[%emt 0:09:22]} 14. Bxd5 {[%emt 0:01:41]} Bxd5 {[%emt 0:00:09]} 15. Qxd5 {[%emt 0:00:22]} Nc7 {[%emt 0:00:12]} 16. Qd2 {[%emt 0:00:30]} dxe5 {[%emt 0:04:05]} 17. Qxd8 {[%emt 0:04:29]} Rxd8 {[%emt 0:00:13]} 18. Nxe5 {[%emt 0:00:14]} Ne6 {[%emt 0:01:14]} 19. Rad1 {[%emt 0:00:38]} Re8 {[%emt 0:05:11]} 20. Nh5 {[%emt 0:18:04]} Nxf4 {[%emt 0:01:19]} 21. Nxg7 {[%emt 0:00:08]} Kxg7 {[%emt 0:00:08]} 22. Rfe1 {[%emt 0:06:47]} f6 23. Nf3 Nc6 24. Ne5 {[%emt 0:00:00]} Kf8 {[%emt 0:02:42]} 25. Nf3 {[%emt 0:00:00]} Kf7 {[%emt 0:02:57]} 26. Kh2 {[%emt 0:00:00]} Ne6 {[%emt 0:00:25]} 27. g3 {[%emt 0:00:00]} Nf8 {[%emt 0:01:49]} 28. Nh4 {[%emt 0:00:00]} Rad8 {[%emt 0:00:27]} 29. f4 {[%emt 0:00:00]} Rxd1 {[%emt 0:00:33]} 30. g4 {[%emt 0:00:03]} Red8 31. Rxd1 {[%emt 0:01:21]} 0-1

[Event "DFMM-LV 2023"]
[Site "Braunfels"]
[Date "2023.06.11"]
[Round "5.46"]
[White "Fock, Amina"]
[Black "Loos, Tilda"]
[Result "1-0"]
[Annotator "NA RC COMBH"]
[ECO "B40"]
[WhiteElo "1836"]
[BlackElo "1401"]
[PlyCount "69"]
[EventDate "2023.06.09"]
[EventType "team-tourn"]
[EventCountry "GER"]
[SourceTitle "playchess.com"]
[Source "ChessBase"]
[SourceQuality "1"]
[TimeControl "40/5400+30:1800+30"]

1. e4 {[%emt 0:00:02]} c5 {[%emt 0:00:07]} 2. Nf3 {[%emt 0:00:05]} e6 {[%emt 0:00:07]} 3. g3 {[%emt 0:00:05]} Nc6 {[%emt 0:00:05]} 4. Bg2 {[%emt 0:00:07]} Be7 {[%emt 0:00:07]} 5. O-O {[%emt 0:00:16]} Nf6 {[%emt 0:00:07]} 6. Qe2 {[%emt 0:00:22]} e5 {[%emt 0:00:06]} 7. d3 {[%emt 0:00:56]} O-O {[%emt 0:00:09]} 8. Nbd2 {[%emt 0:01:47]} b5 {[%emt 0:00:39]} 9. a4 {[%emt 0:00:22]} b4 {[%emt 0:00:30]} 10. Nc4 {[%emt 0:02:50]} d6 {[%emt 0:00:28]} 11. h3 {[%emt 0:03:18]} Bb7 {[%emt 0:02:56]} 12. Ne3 {[%emt 0:06:29]} a5 {[%emt 0:05:57]} 13. Nf5 {[%emt 0:02:05]} Re8 {[%emt 0:02:32]} 14. N3h4 {[%emt 0:01:46]} Nd4 {[%emt 0:00:48]} 15. Nxd4 {[%emt 0:06:14]} cxd4 {[%emt 0:00:31]} 16. f4 {[%emt 0:02:00]} Nd7 {[%emt 0:00:36]} 17. Nf5 {[%emt 0:01:43]} f6 {[%emt 0:02:33]} 18. Qg4 {[%emt 0:00:49]} g6 {[%emt 0:02:49]} 19. Nh6+ {[%emt 0:08:25]} Kg7 {[%emt 0:00:53]} 20. fxe5 {[%emt 0:07:17]} Nxe5 {[%emt 0:02:57]} 21. Qe2 {[%emt 0:01:04]} d5 {[%emt 0:02:18]} 22. Ng4 {[%emt 0:03:32]} Qd6 {[%emt 0:02:03]} 23. Bh6+ {[%emt 0:01:43]} Kg8 {[%emt 0:00:51]} 24. Rae1 {[%emt 0:08:57]} dxe4 {[%emt 0:00:49]} 25. dxe4 {[%emt 0:01:12]} d3 {[%emt 0:03:58]} 26. cxd3 {[%emt 0:00:31]} Qxd3 {[%emt 0:01:04]} 27. Qf2 {[%emt 0:11:48]} Nxg4 {[%emt 0:00:41]} 28. hxg4 {[%emt 0:00:03]} Qd7 {[%emt 0:04:50]} 29. g5 {[%emt 0:01:52]} Ba6 {[%emt 0:00:55]} 30. gxf6 {[%emt 0:00:20]} Bxf6 {[%emt 0:02:26]} 31. Qxf6 {[%emt 0:00:08]} Bxf1 {[%emt 0:00:13]} 32. Rxf1 {[%emt 0:00:08]} Qe7 {[%emt 0:00:52]} 33. e5 {[%emt 0:00:34]} Rad8 {[%emt 0:00:32]} 34. Bd5+ {[%emt 0:00:31]} Rxd5 {[%emt 0:02:16]} 35. Qxe7 {[%emt 0:00:09]} 1-0